Cogmind - Beta 10.2 @@@ ROGUE MODE // 2021.02.25 @ 20:01:08 Player: Finestep Result: Destroyed by G-50 Soldier with Heavy Laser Performance ------------- Evolutions (5) 2500 Regions Visited (21) 4200 Robots Destroyed (340) 1700 Value Destroyed (15546) 15546 Prototype IDs (218) 4360 Alien Tech Used (0) 0 Bonus (8562) 8562 TOTAL SCORE: 36868 Bonus ------- High Alert Combat Kills 3222 Follower Combat Kills 1796 Entered Garrisons 400 Used RIF Installer 1000 Network Hubs Disabled 200 Met Data Miner 300 Used Data Conduit 3000 A7 Reached Mainframe 300 Met R17 at Cetus 500 Pursued by Intercept 500 Friendly Fire -2656 Cogmind --------- Core Integrity 0/1000 Matter 300/300 Energy 126/170 System Corruption 32% Temperature Cool (18) Movement Treading (180) Ox1 Location -5/Hub_04(d) Parts ------- > --- POWER (1) -------- Micro Fission Core > --- PROPULSION (4) --- Centrium Heavy Treads > --- UTILITY (10) ----- High-capacity Storage Unit High-capacity Storage Unit High-capacity Storage Unit Advanced Terrain Scan Processor Experimental Targeting Computer Centrium Medium Armor Plating Experimental Thermal Shield EM Dispersion Field Relay Coupler [NC] (12) > --- WEAPON (2) ------- Thunder Hammer > --- INVENTORY (28) --- Energy Well (135) Improved Energy Well (0) Matter Compressor (250) Advanced Terrain Scanner Experimental Phase Shifter Improved Hacking Suite Improved Hacking Suite Relay Coupler [Hunter] (19) Combat Drone Bay (2/2) EMDS Advanced EMP Blaster Mini Smartbomb Launcher Improved Remote Datajack Improved Remote Datajack Plasma Cutter Peak State ------------ > --- POWER ------------ Reinforced Fission Core > --- PROPULSION ------- Centrium Heavy Treads Centrium Heavy Treads > --- UTILITY ---------- High-capacity Storage Unit High-capacity Storage Unit High-capacity Storage Unit High-capacity Storage Unit Advanced Terrain Scan Processor Advanced Targeting Computer Weapon Cycler Centrium Medium Armor Plating Centrium Medium Armor Plating Centrium Medium Armor Plating > --- WEAPON ----------- Improved KE Penetrator Improved KE Penetrator > --- INVENTORY -------- Quantum Reactor Centrium Heavy Treads Centrium Heavy Treads Improved Cooling System Improved Cooling System Energy Well Improved Energy Well Matter Compressor Advanced Terrain Scanner 0b10 Decoder Chip [Scout] Centrium Medium Armor Plating Damper Plating Damper Plating Experimental Thermal Shield Relay Coupler [NC] Relay Coupler [Grunt] Relay Coupler [Hunter] Relay Coupler [Hunter] Combat Drone Bay Heavy Phase Cannon Heavy Phase Cannon Enhanced Gauss Cannon Advanced EMP Blaster Mini Smartbomb Launcher Improved Remote Datajack Improved Remote Datajack Plasma Cutter Thunder Hammer [Rating: 121] Favorites ----------- Power Reinforced Fission Core Engine Light Ion Engine Power Core Reinforced Fission Core Reactor Cold Fusion Reactor Propulsion Centrium Heavy Treads Treads Centrium Heavy Treads Leg Enhanced Flexi-carbon Leg Wheel Armored Huge Wheel Flight Unit Improved VTOL Module Utility High-capacity Storage Unit Device Improved Cooling System Storage High-capacity Storage Unit Processor Advanced Targeting Computer Hackware Relay Coupler [Sentry] Protection Centrium Medium Armor Plating Weapon Light Cannon Energy Gun Cooled Pulse Rifle Energy Cannon Proton Cannon Ballistic Gun Light Assault Rifle Ballistic Cannon Light Cannon Launcher Advanced EMP Blaster Special Weapon Improved Remote Datajack Impact Weapon Thunder Hammer Slashing Weapon Axe Piercing Weapon Makeshift Spear Build | -11 -10 -10 -10 -9 -8 -8 -7 -7 -7 -6 -6 -6 -6 -5 -5 -5 -5 -5 -5 -5 -5 ------- Run | Scr Mat Min Exi Min Mat Gar Fac Gar Sto Fac Low Low Dat Pro Fac Was Fac Ext Cet Arc Hub Slots Evolved 10 | . . . . . 4 . 2 . . 2 . . . . 2 . . . . . . Power . | . . . . . . . . . . . . . . . . . . . . . . Propulsion 2 | . . . . . 1 . 1 . . . . . . . . . . . . . . Utility 8 | . . . . . 3 . 1 . . 2 . . . . 2 . . . . . . Weapon . | . . . . . . . . . . . . . . . . . . . . . . Parts Attached 387 | 9 5 . 2 3 52 30 9 23 56 9 18 3 16 4 21 10 14 16 18 15 54 Power 22 | 1 . . . 1 3 1 . 2 2 2 1 . . . 3 1 1 1 1 . 2 Engine 3 | 1 . . . . 2 . . . . . . . . . . . . . . . . Core 13 | . . . . 1 1 1 . 2 2 1 . . . . 3 . . . 1 . 1 Reactor 6 | . . . . . . . . . . 1 1 . . . . 1 1 1 . . 1 Propulsion 63 | 3 . . 1 1 15 12 1 3 2 . 5 . 4 . 1 4 2 3 2 2 2 Treads 40 | 1 . . 1 . 10 10 1 2 . . 3 . . . . 1 2 3 2 2 2 Leg 12 | . . . . . 3 1 . . . . 1 . 4 . 1 2 . . . . . Wheel 10 | 2 . . . 1 1 1 . 1 2 . 1 . . . . 1 . . . . . Hover . | . . . . . . . . . . . . . . . . . . . . . . Flight 1 | . . . . . 1 . . . . . . . . . . . . . . . . Utility 121 | 2 3 . 1 . 16 3 4 8 12 4 4 . 7 1 10 3 8 6 6 8 15 Device 47 | . . . . . 4 . 4 2 3 2 2 . 2 . 5 . 5 4 2 5 7 Storage 13 | 2 3 . 1 . 3 . . 1 . . . . 2 . . 1 . . . . . Processor 6 | . . . . . . . . . . . . . 3 . 1 . . . . 1 1 Hackware 18 | . . . . . . . . 1 7 . . . . . 3 1 1 2 . . 3 Protection 37 | . . . . . 9 3 . 4 2 2 2 . . 1 1 1 2 . 4 2 4 Artifact . | . . . . . . . . . . . . . . . . . . . . . . Weapon 181 | 3 2 . . 1 18 14 4 10 40 3 8 3 5 3 7 2 3 6 9 5 35 Energy Gun 25 | 1 . . . . . 3 3 . 12 2 4 . . . . . . . . . . Energy Cannon 38 | . . . . . 9 1 . 3 1 . 1 2 2 . 4 . 1 3 1 . 10 Ballistic Gun 37 | 2 2 . . 1 . . . 2 8 . 1 . . 1 . . . . 4 3 13 Ballistic Cannon 12 | . . . . . 5 4 . . . . . 1 . . . . . . . 1 1 Launcher 20 | . . . . . 3 3 . 2 3 . 1 . 2 2 1 . . . 2 . 1 Special Weapon 24 | . . . . . . . . 1 9 1 1 . . . 1 2 . 1 . 1 7 Impact Weapon 18 | . . . . . 1 3 1 2 2 . . . . . . . 2 2 2 . 3 Slashing Weapon 5 | . . . . . . . . . 5 . . . . . . . . . . . . Piercing Weapon 2 | . . . . . . . . . . . . . 1 . 1 . . . . . . Special Melee Weapon . | . . . . . . . . . . . . . . . . . . . . . . Unidentified Prototypes 9 | . . . . . 3 . . . 3 2 . . . . . . . . . . 1 Parts Lost 61 | . 1 . . 2 11 6 . 9 . 3 3 . 1 2 8 . 1 . 1 2 11 Power 7 | . . . . . 1 1 . 1 . . . . . . 2 . . . . . 2 Propulsion 13 | . . . . 1 3 2 . 3 . . 1 . . . 1 . . . . . 2 Utility 16 | . . . . . 2 1 . 3 . 1 1 . . . 2 . 1 . 1 1 3 Weapon 25 | . 1 . . 1 5 2 . 2 . 2 1 . 1 2 3 . . . . 1 4 Highest Loss Streak 10 | . 1 . . 2 7 4 . 3 . 2 2 . 1 1 5 . 1 . 1 2 10 Average Slot Usage (%) 85 | . 100 100 100 100 95 97 91 85 81 79 80 86 86 92 91 79 81 85 87 77 81 Engine 1 | . 14 14 14 3 2 3 . . . . . . . . . . . . . . . Core 3 | . . . . 10 6 5 7 6 7 4 . . . . 3 . . . 2 5 4 Reactor 1 | . . . . . . . . . . 1 5 6 6 6 . 3 5 5 2 . . Treads 11 | . 14 14 22 16 17 22 15 14 3 . 9 13 6 . . 3 5 9 11 11 10 Leg 1 | . . . . . 2 . . . . . . . 11 26 22 5 . . . . . Wheel 4 | . 14 14 5 11 3 1 7 6 12 13 6 6 3 . . 3 5 1 . . . Device 7 | . . . . . 3 . 7 2 1 6 6 13 4 6 8 . 10 11 12 15 7 Storage 26 | . 28 28 28 28 30 36 30 30 30 26 26 26 26 26 23 27 23 23 23 23 19 Processor 5 | . . . . . . . . . . . . . 5 6 11 11 11 11 11 11 13 Hackware 1 | . . . . . . . . . 4 6 2 . . . 1 3 . 2 . . 3 Protection 6 | . . . . . 11 8 7 6 3 6 9 6 6 6 4 4 5 5 9 6 4 Energy Gun 1 | . 1 . . . . 2 14 2 6 12 5 . . . . . . . . . . Energy Cannon 2 | . . . . . 8 3 . 4 . . 2 6 5 . 3 5 5 3 . . 3 Ballistic Gun 4 | . 26 28 28 28 . . . 1 6 . 2 4 . 1 1 . . . 4 . 5 Ballistic Cannon 1 | . . . . . 8 10 . . . . . 1 6 4 . . . . . . . Naked Turns . | . . . . . . . . . . . . . . . . . . . . . . Heaviest Build 205 | 14 70 70 70 72 146 148 150 163 166 172 179 181 181 175 182 205 181 179 182 186 179 Greatest Support 160 | 26 10 10 40 40 60 60 28 42 56 56 56 28 112 112 112 84 70 140 160 160 160 Greatest Overweight (x) 54 | 1 6 6 6 4 8 7 5 5 5 3 6 6 6 1 1 7 6 6 1 54 1 Average Overweight (x) 4 | . 4 6 3 3 3 2 5 4 2 2 5 6 3 1 1 5 5 2 1 19 . Largest Inventory Capacity 36 | 8 20 20 20 20 36 36 36 36 36 36 36 36 36 36 36 36 36 36 36 36 36 Average Capacity 33 | 6 16 20 20 20 30 36 36 36 36 36 36 36 33 36 36 36 36 36 36 36 31 Most Carried 36 | 7 20 20 20 20 36 36 36 36 36 36 36 36 36 36 36 36 36 35 36 36 36 Average Carried 32 | 4 13 19 19 18 28 34 35 34 35 35 35 35 31 35 35 33 35 31 35 35 31 Final Capacity 36 | 8 20 20 20 20 36 36 36 36 36 36 36 36 36 36 36 36 36 36 36 36 28 Final Carried 36 | 7 20 19 20 19 36 36 36 36 36 36 36 36 36 36 33 36 35 33 36 36 17 Class Distribution -------------------- 77% | Hauler-Mutant 14% | Bothacker-Mutant Dominant Class ---------------- Hauler-Mutant | -10/Materials Hauler-Mutant | -10/Mines Hauler-Mutant | -10/Exiles Hauler-Mutant | -9/Mines Hauler-Mutant | -8/Materials Hauler-Mutant | -8/Garrison Hauler-Mutant | -7/Factory Bothacker-Mutant | -7/Garrison Bothacker-Mutant | -7/Storage Hauler-Mutant | -6/Factory Hauler-Mutant | -6/Lower Caves Hauler-Mutant | -6/Lower Caves Hauler-Mutant | -6/Data Miner Hauler-Mutant | -5/Proximity Caves Hauler-Mutant | -5/Factory Bothacker-Mutant | -5/Waste Bothacker-Mutant | -5/Factory Hauler-Mutant | -5/Extension Hauler-Mutant | -5/Cetus Hauler-Mutant | -5/Archives Hauler-Mutant | -5/Hub_04(d) Resources | -11 -10 -10 -10 -9 -8 -8 -7 -7 -7 -6 -6 -6 -6 -5 -5 -5 -5 -5 -5 -5 -5 ----------- Run | Scr Mat Min Exi Min Mat Gar Fac Gar Sto Fac Low Low Dat Pro Fac Was Fac Ext Cet Arc Hub Matter Collected 9250 | 253 569 32 . 91 1281 520 114 463 1010 80 451 30 200 147 178 232 189 507 354 878 1671 Remotely . | . . . . . . . . . . . . . . . . . . . . . . Salvage Created 17475 | 150 880 138 . 91 1923 584 156 1113 1475 928 1217 271 440 710 637 731 610 254 992 688 3487 Parts 739 | 14 40 8 . 3 85 29 8 51 87 23 40 . 15 23 33 17 24 7 37 54 141 Haulers Intercepted 12 | . 2 . . . 4 . . . 3 1 . . . . . . 1 . . . 1 Recyclers Shooed 14 | . 5 . . . 4 . . . 1 . . 1 . . 2 . . 1 . . . Parts Field Recycled . | . . . . . . . . . . . . . . . . . . . . . . Retrieved Matter . | . . . . . . . . . . . . . . . . . . . . . . Parts Self-Destructed 40 | . . . . . . . . . . . 26 7 . 7 . . . . . . . Prevented 18 | . . . . . . . . . . . 6 . . 12 . . . . . . . Kills | -11 -10 -10 -10 -9 -8 -8 -7 -7 -7 -6 -6 -6 -6 -5 -5 -5 -5 -5 -5 -5 -5 ------- Run | Scr Mat Min Exi Min Mat Gar Fac Gar Sto Fac Low Low Dat Pro Fac Was Fac Ext Cet Arc Hub Combat Hostiles Destroyed 263 | . 13 3 . 2 36 17 4 27 26 16 17 1 4 15 10 3 10 2 9 4 44 Melee 3 | . . . . . . . . . 2 . . . . . . . . . . . 1 Guns 106 | . 13 3 . 2 . 2 4 12 15 10 10 . . . . . . . 3 3 29 Cannons 81 | . . . . . 31 12 . 7 . . 4 1 . . 5 3 9 2 . 1 6 AOE 50 | . . . . . 4 3 . 7 9 3 2 . . 10 5 . . . 1 . 6 Classes Destroyed 20 | 2 6 . . . 4 . . 1 4 1 1 . . . . 1 . . . . . Worker 8 | . 1 . . . 1 . . . 1 1 . . . . . . . . . . 4 Builder 6 | . 1 . . . 1 . . . 1 1 . . . . . . . 1 . . 1 Tunneler 4 | 4 . . . . . . . . . . . . . . . . . . . . . Hauler 12 | . 2 . . . 4 . . . 3 1 . . . . . . 1 . . . 1 Recycler 14 | 1 4 . . . 4 . 1 . 1 . . . . . 1 . . 1 . . 1 Mechanic 2 | . . . . . . . . . 1 . . . . . . . . . . . 1 Operator 12 | . . . . . . . . . 1 . . . . . 1 . . . . 9 1 Watcher 10 | . 2 . . . 3 . . . 1 . . . . . . . . . 2 . 2 Swarmer 46 | . 6 . . . 7 3 4 10 2 . 1 . . 8 . . 4 . 1 . . Saboteur 3 | . . . . . . . . . . 1 . . . . . . . . . . 2 Grunt 124 | . 7 3 . 2 19 4 . 16 15 12 10 1 . 5 5 . 1 1 1 . 22 Brawler 12 | . . . . . 2 4 . . 2 . 2 . . . . . . . 1 . 1 Duelist 4 | . . . . . . . . . 2 1 1 . . . . . . . . . . Protector 2 | . . . . . . . . . 1 . . . . . . . . . . . 1 Sentry 27 | . . . . . 6 6 . . 1 . 1 . . 1 . . 3 1 . 4 4 Demolisher 1 | . . . . . . . . 1 . . . . . . . . . . . . . Hunter 7 | . . . . . 1 . . . . 1 1 . . 1 3 . . . . . . Programmer 15 | . . . . . 1 . . . 3 1 . . . . 2 . 2 . . . 6 Compactor 3 | . . . . . . . . . . . . . . . . 3 . . . . . Cetus Guard 6 | . . . . . . . . . . . . . . . . . . . 6 . . Enhanced Grunt 4 | . . . . . . . . . . . . . 4 . . . . . . . . Lightning 6 | . . . . . . . . . . . . . . . . . . . . . 6 Tracker 1 | . . . . . . . . . . . . . . . . . . . . . 1 Combat Programmer 1 | . . . . . . . . . . . . . . . . . . . . . 1 Packrat 3 | . . . . . . . . . . . . 3 . . . . . . . . . Thug 3 | . . . . . . . . . 1 . . . . . . . . . 2 . . Savage 2 | . . . . . . . . . . . 2 . . . . . . . . . . Butcher 1 | . . . . . . . . . . . . . . . . . . . 1 . . Guerrilla 2 | . . . . . . . . . . . . . . . . . . . 2 . . Mutant 1 | . . . . . . . . . . . 1 . . . . . . . . . . Best Kill Streak 15 | 4 4 2 . 1 7 5 4 15 10 5 4 1 4 5 4 1 4 1 5 6 10 Combat Bots Only 15 | . 3 2 . 1 6 5 4 15 8 4 4 1 4 5 4 1 4 1 4 2 5 Max Kills in Single Turn 9 | 1 1 1 . 1 4 2 1 2 7 2 1 1 1 3 4 1 1 1 4 1 9 Gunslinging . | . . . . . . . . . . . . . . . . . . . . . . Exploded 6 | . . . . . 4 2 . 2 6 2 1 . . 3 3 . . . 1 . 4 Melee 1 | . . . . . . . . . 1 . . . . . . . . . . . 1 Uniques/NPCs Destroyed 1 | . . . . . . . . . . . . . . . . . . . 1 . . Revision 17 (-5/Cetus) Combat | -11 -10 -10 -10 -9 -8 -8 -7 -7 -7 -6 -6 -6 -6 -5 -5 -5 -5 -5 -5 -5 -5 -------- Run | Scr Mat Min Exi Min Mat Gar Fac Gar Sto Fac Low Low Dat Pro Fac Was Fac Ext Cet Arc Hub Damage Taken 23158 | . 413 94 . 187 2238 1284 398 1750 1249 1528 1729 46 466 580 1690 . 1957 200 480 575 6294 Core 2233 | . 105 14 . 48 195 170 75 193 86 113 118 18 95 . 176 . 165 . 26 39 597 Absorbed by Shields 849 | . . . . . . . . 42 8 . . . . . . . 482 35 175 107 . Reduced by Siege Mode 221 | . . . . . . . . . . . . . . . . . . . . 51 170 Core Remaining (%) 54 | 100 . . . 33 . 33 . . 49 . . . . 59 . . . . . . . Volleys Fired 1168 | 15 77 8 . 10 150 67 9 70 92 66 75 7 13 23 23 76 87 48 27 67 158 Largest 2 | 2 2 2 . 2 2 2 2 2 2 2 2 1 1 1 2 1 1 1 2 2 2 Hottest 196 | 70 70 40 . 40 136 160 160 160 73 60 103 75 75 43 180 40 98 98 90 92 196 Shots Fired 1810 | 30 153 16 . 20 297 121 18 80 152 127 127 7 13 23 31 72 84 51 33 93 262 Gun 896 | 30 153 16 . 20 . 6 18 41 122 126 100 . . . . . . . 20 71 173 Cannon 743 | . . . . . 295 106 . 32 2 . 22 7 4 . 22 65 84 24 1 4 75 Launcher 74 | . . . . . 2 9 . 5 3 . 2 . 9 23 6 . . . 12 . 3 Special 97 | . . . . . . . . 2 25 1 3 . . . 3 7 . 27 . 18 11 Kinetic 765 | 19 138 16 . 20 150 71 . 26 53 . 4 . . . . . . . 20 75 173 Thermal 826 | 11 15 . . . 145 41 18 15 68 126 96 2 . . 22 65 84 24 1 18 75 Explosive 15 | . . . . . 2 9 . . 3 . . . . . 1 . . . . . . Electromagnetic 125 | . . . . . . . . 37 3 . 24 5 13 23 5 . . . 12 . 3 Robot Hit Streak 41 | 6 14 11 . 7 17 13 6 19 26 30 23 14 2 8 12 21 24 30 9 31 41 Robot Miss Streak 8 | 2 4 2 . 1 8 3 3 7 4 4 2 . 2 2 2 2 2 1 1 2 2 Penetration Max 3 | . . . . . . . . . . . . . . . . . . . 1 1 3 Secondary Targets 12 | . 1 1 . . . . . 1 3 3 . . . . . . . . 1 . 2 Max Gunslinging Chain 1 | . 1 1 . . . . . 1 1 1 . . . . . . . . 1 . 1 Shots Hit Robots 1336 | 17 105 11 . 14 196 75 14 61 125 103 102 5 4 10 16 58 48 47 16 71 238 Core Hits 666 | 7 38 8 . 5 73 30 11 59 82 45 41 4 11 19 20 10 17 8 26 31 121 Critical Hits 86 | . 2 . . . 13 5 . 1 . . 2 . . . 1 . . . 2 7 53 Critical Kills 31 | . 1 . . . 5 1 . . . . 1 . . . 1 . . . 1 4 17 Critical Parts Destroyed 51 | . 1 . . . 8 4 . . . . 1 . . . . . . . 1 2 34 Melee Attacks 108 | . . . . . 2 9 2 1 15 . . . 1 . 11 . 24 7 . . 36 Impact 84 | . . . . . 2 9 2 1 3 . . . . . . . 24 7 . . 36 Slashing 12 | . . . . . . . . . 12 . . . . . . . . . . . . Piercing 12 | . . . . . . . . . . . . . 1 . 11 . . . . . . Sneak Attacks 4 | . . . . . . . . . 1 . . . 1 . . . 1 1 . . . Combat Hostiles . | . . . . . . . . . . . . . . . . . . . . . . Follow-up Attacks . | . . . . . . . . . . . . . . . . . . . . . . Damage Inflicted 38423 | 178 1090 146 . 145 3951 1651 148 1750 3190 2901 2685 223 592 1222 1559 1645 1667 909 2212 1827 8732 Guns 13496 | 178 1090 146 . 145 . 76 146 727 1954 1941 1555 . . . . . . . 423 1568 3547 Cannons 13204 | . . . . . 3767 1345 . 630 . . 697 223 40 . 736 1645 1282 738 . 104 1997 Explosions 9158 | . . . . . 163 215 . 393 1010 910 428 . 443 1222 763 . . . 1789 . 1822 Melee 2278 | . . . . . 21 15 . . 226 . . . 109 . 60 . 375 171 . . 1301 Ramming 132 | . . . . . . . 2 . . 50 5 . . . . . 10 . . . 65 Kinetic 10856 | 64 940 146 . 145 1790 807 . 380 899 . 43 . . . . . . . 423 1672 3547 Thermal 15680 | 114 150 . . . 1977 614 146 514 1055 1941 1721 . . 60 736 1645 1282 738 835 155 1997 Explosive 2783 | . . . . . 163 215 . . 1010 910 . . . . 485 . . . . . . Electromagnetic 6694 | . . . . . . . . 856 . . 916 223 483 1162 278 . . . 954 . 1822 Impact 1883 | . . . . . 21 15 . . . . . . . . . . 375 171 . . 1301 Slashing 226 | . . . . . . . . . 226 . . . . . . . . . . . . Piercing 169 | . . . . . . . . . . . . . 109 . 60 . . . . . . Highest Corruption 32 | . . . . . . . . 1 3 . . . . . 2 26 30 30 30 30 32 Average Corruption 15 | . . . . . . . . 1 2 . . . . . 1 19 28 30 30 17 5 Corruption Purged 30 | . . . . . . . . . . . . . . . . . . . . 30 . Effects 617 | . . . . . . . . 3 18 . . . . . 1 42 82 100 36 284 51 Message Errors 122 | . . . . . . . . 1 5 . . . . . 1 8 9 14 5 73 6 Matter Fused 107 | . . . . . . . . . 4 . . . . . . 4 11 19 7 51 11 Heat Flow Errors 48 | . . . . . . . . . 2 . . . . . . 1 7 8 2 26 2 Energy Discharges 46 | . . . . . . . . 1 1 . . . . . . 3 3 4 1 27 6 Parts Rejected 5 | . . . . . . . . . . . . . . . . 1 2 . . 1 1 Data Loss (minor) 62 | . . . . . . . . 1 3 . . . . . . 3 6 11 1 35 2 Data Loss (major) 14 | . . . . . . . . . . . . . . . . . . 1 1 12 . Misfires 10 | . . . . . . . . . . . . . . . . 1 1 4 2 1 1 Alerts 10 | . . . . . . . . . . . . . . . . . 1 2 . 7 . Misdirections 46 | . . . . . . . . . . . . . . . . 2 7 19 3 15 . Targeting Errors 133 | . . . . . . . . . 3 . . . . . . 14 31 17 13 35 20 Weapon Failures 14 | . . . . . . . . . . . . . . . . 5 4 1 1 1 2 Overload Shots 7 | . . . . . . . . . 1 3 . . . . . . 1 1 1 . . Effects 1 | . . . . . . . . . 1 . . . . . . . . . . . . Energy Bleed 1 | . . . . . . . . . 1 . . . . . . . . . . . . Overflow Damage 1129 | . . . . . 54 33 . 18 8 75 70 32 49 9 154 . 145 164 34 . 284 Projectiles 345 | . . . . . 54 28 . 18 . . 1 32 . . 141 . 26 . . . 45 Explosions 344 | . . . . . . 5 . . 8 75 69 . . 9 13 . . . 34 . 131 Melee 440 | . . . . . . . . . . . . . 49 . . . 119 164 . . 108 Knockbacks 36 | . . . . . 29 2 . . . . . . . . . . 3 2 . . . Impact 3 | . . . . . . . . . . . . . . . . . 2 1 . . . Kinetic 28 | . . . . . 26 2 . . . . . . . . . . . . . . . Secondary 5 | . . . . . 3 . . . . . . . . . . . 1 1 . . . Self-Inflicted Damage 631 | . . . . . 41 37 . 172 36 25 . . . 27 153 . . . 140 . . Shots 17 | . . . . . 1 1 . 5 2 . . . . 2 3 . . . 3 . . Rammed 11 | . . . . . . . 1 . . 2 1 . . . . . 1 . . . 6 Targets Rammed 11 | . . . . . . . 1 . . 2 1 . . . . . 1 . . . 6 Kicked . | . . . . . . . . . . . . . . . . . . . . . . Crushed . | . . . . . . . . . . . . . . . . . . . . . . Highest Temperature 633 | 140 220 24 . 18 398 388 288 208 231 44 86 4 98 12 307 224 268 239 269 320 633 Average Temperature 81 | 67 77 11 . 8 95 116 165 72 35 11 32 4 53 6 112 117 56 83 62 78 93 Received Heat Transfer 5850 | . 111 54 . 102 828 495 18 339 463 489 531 18 60 93 246 . 237 44 18 42 1662 Effects 25 | . . . . . 2 3 . . . . . . . . 1 1 . . . 7 11 Shutdowns 2 | . . . . . 1 . . . . . . . . . . . . . . . 1 Energy Bleed 5 | . . . . . 1 1 . . . . . . . . . 1 . . . 1 1 Interference 15 | . . . . . . 1 . . . . . . . . . . . . . 6 8 Matter Decay 1 | . . . . . . . . . . . . . . . . . . . . . 1 Short Circuit 1 | . . . . . . 1 . . . . . . . . . . . . . . . Damage (minor) 1 | . . . . . . . . . . . . . . . 1 . . . . . . Siege Activations 10 | . . . . . . . . . . . . . . . . . . . . 2 8 Total Turns 252 | . . . . . . . . . . . . . . . . . . . . 57 195 Longest Duration 56 | . . . . . . . . . . . . . . . . . . . . 42 56 Robots Corrupted 18 | . . . . . . . . 1 . . . 1 4 5 . . . . 6 . 1 Combat Hostiles 16 | . . . . . . . . 1 . . . . 4 5 . . . . 5 . 1 Parts Fried 37 | . . . . . . . . 1 . . 3 . 6 4 2 . 1 1 10 . 9 Impact Corruptions 14 | . . . . . . . . . . . . . . . . . 3 5 . . 6 Robots Melted 5 | . . . . . 1 . . . . 3 1 . . . . . . . . . . Combat Hostiles 5 | . . . . . 1 . . . . 3 1 . . . . . . . . . . Parts Melted 41 | 1 . . . . 11 . . 1 3 14 4 . . . . . 6 . . . 1 Heat Transferred 22710 | 333 444 . . . 3774 1038 325 900 1943 3713 3110 . . 50 325 2109 1517 630 700 481 1318 Parts Sabotaged . | . . . . . . . . . . . . . . . . . . . . . . Parts Stolen 2 | . . . . . . . . . . . 2 . . . . . . . . . . Parts Stripped . | . . . . . . . . . . . . . . . . . . . . . . Power Chain Reactions 15 | . . . . . . . . 6 . . 1 . . 2 . . . . 5 . 1 Missiles Intercepted . | . . . . . . . . . . . . . . . . . . . . . . Alert | -11 -10 -10 -10 -9 -8 -8 -7 -7 -7 -6 -6 -6 -6 -5 -5 -5 -5 -5 -5 -5 -5 ------- Run | Scr Mat Min Exi Min Mat Gar Fac Gar Sto Fac Low Low Dat Pro Fac Was Fac Ext Cet Arc Hub Peak Influence 1237 | 25 285 90 . 65 681 1092 586 1162 1157 896 . . . . 271 100 361 365 687 376 1237 Initial 573 | . 16 50 . . 25 412 573 387 566 514 . . . . . 94 . 109 146 178 . Average 316 | 8 156 45 . 47 372 844 523 847 704 562 . . . . 100 97 93 143 476 38 588 Maximum Alert Level 4 | . 1 . . . 2 3 2 4 4 3 . . . . 1 . 1 1 2 1 4 Low Security (%) 51 | 100 68 100 . 100 16 . . . . . . . . . 84 100 80 79 8 89 38 Level 1 12 | . 31 . . . 26 . 22 5 . . . . . . 15 . 19 20 16 10 7 Level 2 20 | . . . . . 57 17 77 28 62 98 . . . . . . . . 74 . . Level 3 12 | . . . . . . 82 . 54 31 1 . . . . . . . . . . 30 Level 4 2 | . . . . . . . . 11 5 . . . . . . . . . . . 22 Level 5 . | . . . . . . . . . . . . . . . . . . . . . . High Security . | . . . . . . . . . . . . . . . . . . . . . . Max Security . | . . . . . . . . . . . . . . . . . . . . . . Squads Dispatched 60 | . 3 . . . 7 . 3 . 14 8 . . . . 6 . 4 . . . 15 Investigation 9 | . 3 . . . 2 . 1 . . . . . . . 2 . 1 . . . . Extermination 11 | . . . . . . . . . 4 1 . . . . 2 . 1 . . . 3 Reinforcement 17 | . . . . . 2 . . . 2 6 . . . . 1 . . . . . 6 Assault 10 | . . . . . . . . . 4 1 . . . . . . 1 . . . 4 Garrison 11 | . . . . . 3 . 2 . 4 . . . . . 1 . 1 . . . . Intercept 2 | . . . . . . . . . . . . . . . . . . . . . 2 Construction Impeded 4 | . . . . . 1 . . . . . . . . . 1 . . . . . 2 Haulers Reinforced 3 | . . . . . . . . . 1 2 . . . . . . . . . . . Stealth | -11 -10 -10 -10 -9 -8 -8 -7 -7 -7 -6 -6 -6 -6 -5 -5 -5 -5 -5 -5 -5 -5 --------- Run | Scr Mat Min Exi Min Mat Gar Fac Gar Sto Fac Low Low Dat Pro Fac Was Fac Ext Cet Arc Hub Distress Signals 19 | . . . . . 5 . . . 3 1 . . . . 2 . . 1 2 1 4 Communications Jammed . | . . . . . . . . . . . . . . . . . . . . . . Distress Signals . | . . . . . . . . . . . . . . . . . . . . . . Times Spotted 473 | . 22 3 . 3 57 19 8 34 59 22 33 3 4 13 21 6 12 18 15 43 78 Peak Tracking Total 11 | . 4 3 . 2 7 4 4 8 9 6 7 3 4 5 6 2 4 4 5 2 11 Tactical Retreats 33 | . . 1 . 1 7 4 2 3 . . 4 . . . 1 . 1 2 . . 7 Traps | -11 -10 -10 -10 -9 -8 -8 -7 -7 -7 -6 -6 -6 -6 -5 -5 -5 -5 -5 -5 -5 -5 ------- Run | Scr Mat Min Exi Min Mat Gar Fac Gar Sto Fac Low Low Dat Pro Fac Was Fac Ext Cet Arc Hub Traps Triggered 17 | . 2 . . . . 11 . 2 . . . . . . 1 . . 1 . . . Indirectly . | . . . . . . . . . . . . . . . . . . . . . . Trap Hack Attempts . | . . . . . . . . . . . . . . . . . . . . . . Triggered . | . . . . . . . . . . . . . . . . . . . . . . Disarmed . | . . . . . . . . . . . . . . . . . . . . . . Reprogrammed . | . . . . . . . . . . . . . . . . . . . . . . Reused . | . . . . . . . . . . . . . . . . . . . . . . Traps Extracted . | . . . . . . . . . . . . . . . . . . . . . . Installed . | . . . . . . . . . . . . . . . . . . . . . . Triggered . | . . . . . . . . . . . . . . . . . . . . . . Exploded 1 | . . . . . 1 . . . . . . . . . . . . . . . . Machines | -11 -10 -10 -10 -9 -8 -8 -7 -7 -7 -6 -6 -6 -6 -5 -5 -5 -5 -5 -5 -5 -5 ---------- Run | Scr Mat Min Exi Min Mat Gar Fac Gar Sto Fac Low Low Dat Pro Fac Was Fac Ext Cet Arc Hub Machines Disabled 61 | . . . . . 1 1 . 3 6 20 . . . . 2 . 1 3 4 6 14 Max in Single Turn 10 | . . . . . 1 1 . 1 1 7 . . . . 1 . 1 1 1 2 10 Garrison Access 4 | . . . . . . . . . 1 1 . . . . . . 1 . . . 1 Garrison Relay 4 | . . . . . . 1 . 3 . . . . . . . . . . . . . Network Hub 1 | . . . . . . . . . . . . . . . . . . . . . 1 Machines Sabotaged . | . . . . . . . . . . . . . . . . . . . . . . Garrisons Compromised . | . . . . . . . . . . . . . . . . . . . . . . Overloaded Fab Kills . | . . . . . . . . . . . . . . . . . . . . . . Fab Network Shutdowns . | . . . . . . . . . . . . . . . . . . . . . . Hacking | -11 -10 -10 -10 -9 -8 -8 -7 -7 -7 -6 -6 -6 -6 -5 -5 -5 -5 -5 -5 -5 -5 --------- Run | Scr Mat Min Exi Min Mat Gar Fac Gar Sto Fac Low Low Dat Pro Fac Was Fac Ext Cet Arc Hub Machines Accessed 56 | . 10 . 1 . 10 . 4 . 4 5 . 1 4 . 3 . 6 4 . . 4 Terminals 32 | . 8 . . . 5 . 1 . 3 3 . 1 . . 1 . 3 4 . . 3 Fabricators 3 | . . . . . . . 1 . . 1 . . . . 1 . . . . . . Repair Stations 2 | . . . . . . . 1 . . . . . . . . . 1 . . . . Recycling Units 4 | . 2 . . . 2 . . . . . . . . . . . . . . . . Scanalyzers 3 | . . . . . 2 . . . . . . . . . . . 1 . . . . Garrison Access 7 | . . . . . 1 . 1 . 1 1 . . . . 1 . 1 . . . 1 Total Hacks 152 | . 25 . 4 . 35 . 10 . 5 13 . 1 27 . 7 . 13 5 . . 7 Successful 93 | . 11 . 4 . 24 . 8 . 3 4 . 1 27 . 4 . 3 1 . . 3 Failed 59 | . 14 . . . 11 . 2 . 2 9 . . . . 3 . 10 4 . . 4 Catastrophic 9 | . 2 . . . 1 . . . 1 1 . . . . 1 . 2 1 . . . Database Lockouts . | . . . . . . . . . . . . . . . . . . . . . . Manual 51 | . 13 . . . 19 . 2 . 1 . . . . . 5 . 5 . . . 6 Terminals 78 | . 22 . . . 19 . 1 . 4 9 . 1 . . 4 . 7 5 . . 6 Fabricators 9 | . . . . . . . 4 . . 3 . . . . 2 . . . . . . Repair Stations 4 | . . . . . . . 3 . . . . . . . . . 1 . . . . Recycling Units 7 | . 3 . . . 4 . . . . . . . . . . . . . . . . Scanalyzers 11 | . . . . . 9 . . . . . . . . . . . 2 . . . . Garrison Access 12 | . . . . . 3 . 2 . 1 1 . . . . 1 . 3 . . . 1 Terminal Hacks 49 | . 5 . 4 . 7 . . . 2 2 . 1 27 . . . . 1 . . . Record 16 | . . . 4 . . . . . . . . 1 11 . . . . . . . . Part Schematic 6 | . . . . . . . . . . . . . 6 . . . . . . . . Robot Schematic 8 | . 1 . . . . . . . . . . . 7 . . . . . . . . Robot Analysis 3 | . 1 . . . 2 . . . . . . . . . . . . . . . . Prototype ID Bank 4 | . . . . . 1 . . . . . . . 3 . . . . . . . . Open Door 2 | . . . . . . . . . 1 . . . . . . . . 1 . . . Branch Access Points 2 | . 1 . . . . . . . . 1 . . . . . . . . . . . Terminal Index 1 | . . . . . 1 . . . . . . . . . . . . . . . . Locate Traps 3 | . 2 . . . 1 . . . . . . . . . . . . . . . . Hauler Manifests 3 | . . . . . 1 . . . 1 1 . . . . . . . . . . . Zone Layout 1 | . . . . . 1 . . . . . . . . . . . . . . . . Fabricator Hacks 6 | . . . . . . . 3 . . 1 . . . . 2 . . . . . . Load Schematic 2 | . . . . . . . 1 . . . . . . . 1 . . . . . . Build 4 | . . . . . . . 2 . . 1 . . . . 1 . . . . . . Repair Station Hacks 2 | . . . . . . . 2 . . . . . . . . . . . . . . Scan Component 1 | . . . . . . . 1 . . . . . . . . . . . . . . Repair 1 | . . . . . . . 1 . . . . . . . . . . . . . . Recycling Unit Hacks 3 | . 1 . . . 2 . . . . . . . . . . . . . . . . Retrieve Components 3 | . 1 . . . 2 . . . . . . . . . . . . . . . . Scanalyzer 9 | . . . . . 8 . . . . . . . . . . . 1 . . . . Insert Component 5 | . . . . . 4 . . . . . . . . . . . 1 . . . . Analyze 4 | . . . . . 4 . . . . . . . . . . . . . . . . Garrison Access Hacks 6 | . . . . . 1 . 1 . 1 1 . . . . . . 1 . . . 1 Unlock Access 2 | . . . . . 1 . 1 . . . . . . . . . . . . . . Seal Access 3 | . . . . . . . . . 1 1 . . . . . . . . . . 1 Coupler Status 1 | . . . . . . . . . . . . . . . . . 1 . . . . Unauthorized Hacks 18 | . 5 . . . 6 . 2 . . . . . . . 2 . 1 . . . 2 Terminals 10 | . 3 . . . 3 . . . . . . . . . 1 . 1 . . . 2 Track 1 | . . . . . 1 . . . . . . . . . . . . . . . . Assimilate 2 | . . . . . . . . . . . . . . . 1 . 1 . . . . Botnet 4 | . 2 . . . 1 . . . . . . . . . . . . . . . 1 Detonate 1 | . . . . . . . . . . . . . . . . . . . . . 1 Operators 2 | . 1 . . . 1 . . . . . . . . . . . . . . . . Fabricators . | . . . . . . . . . . . . . . . . . . . . . . Repair Stations 1 | . . . . . . . 1 . . . . . . . . . . . . . . Mechanics 1 | . . . . . . . 1 . . . . . . . . . . . . . . Recycling Units 4 | . 2 . . . 2 . . . . . . . . . . . . . . . . Tunnel 4 | . 2 . . . 2 . . . . . . . . . . . . . . . . Scanalyzers . | . . . . . . . . . . . . . . . . . . . . . . Garrison Access 3 | . . . . . 1 . 1 . . . . . . . 1 . . . . . . Restock 1 | . . . . . 1 . . . . . . . . . . . . . . . . Eject 2 | . . . . . . . 1 . . . . . . . 1 . . . . . . Data Cores Recovered . | . . . . . . . . . . . . . . . . . . . . . . Used . | . . . . . . . . . . . . . . . . . . . . . . Hacking Detections 38 | . 8 . . . 7 . 3 . 3 4 . . . . 2 . 6 3 . . 2 Full Trace Events 3 | . 1 . . . . . . . . . . . . . 1 . 1 . . . . Feedback Events 1 | . . . . . . . . . . . . . . . 1 . . . . . . Corruption 1 | . . . . . . . . . . . . . . . 1 . . . . . . Feedback Blocked . | . . . . . . . . . . . . . . . . . . . . . . Robot Schematics Acquired 8 | . 1 . . . . . . . . . . . 7 . . . . . . . . Robots Built . | . . . . . . . . . . . . . . . . . . . . . . Matter . | . . . . . . . . . . . . . . . . . . . . . . Time . | . . . . . . . . . . . . . . . . . . . . . . Total Robot Build Rating . | . . . . . . . . . . . . . . . . . . . . . . Part Schematics Acquired 10 | . . . . . 4 . . . . . . . 6 . . . . . . . . Parts Built 5 | . . . . . . . 2 . . 2 . . . . 1 . . . . . . Matter 968 | . . . . . . . 438 . . 212 . . . . 318 . . . . . . Time 422 | . . . . . . . 232 . . 106 . . . . 84 . . . . . . Total Part Build Rating 24 | . . . . . . . 6 . . 12 . . . . 6 . . . . . . Parts Repaired 1 | . . . . . . . 1 . . . . . . . . . . . . . . Time 44 | . . . . . . . 44 . . . . . . . . . . . . . . Parts Recycled . | . . . . . . . . . . . . . . . . . . . . . . Recycled Matter . | . . . . . . . . . . . . . . . . . . . . . . Retrieved Matter . | . . . . . . . . . . . . . . . . . . . . . . Retrieved Components 12 | . 3 . . . 9 . . . . . . . . . . . . . . . . Parts Scanalyzed 4 | . . . . . 4 . . . . . . . . . . . . . . . . Part Schematics Acquired 4 | . . . . . 4 . . . . . . . . . . . . . . . . Parts Damaged . | . . . . . . . . . . . . . . . . . . . . . . Bothacking | -11 -10 -10 -10 -9 -8 -8 -7 -7 -7 -6 -6 -6 -6 -5 -5 -5 -5 -5 -5 -5 -5 ------------ Run | Scr Mat Min Exi Min Mat Gar Fac Gar Sto Fac Low Low Dat Pro Fac Was Fac Ext Cet Arc Hub Used RIF Installer 2 | . . . . . . 1 . 1 . . . . . . . . . . . . . Program Shield 1 | . . . . . . . . 1 . . . . . . . . . . . . . Robots Hacked 33 | . . . . . . . . 1 13 . 1 . . . 1 6 . 3 . . 8 Non-combat 13 | . . . . . . . . 1 6 . . . . . 1 . . . . . 5 Combat 20 | . . . . . . . . . 7 . 1 . . . . 6 . 3 . . 3 Robot Hacks Applied 38 | . . . . . . . . 1 17 . 1 . . . 1 6 . 3 . . 9 parse_system 1 | . . . . . . . . . 1 . . . . . . . . . . . . find_chute 1 | . . . . . . . . . . . . . . . 1 . . . . . . deconstruct_machine 4 | . . . . . . . . . . . . . . . . . . . . . 4 drop_inventory 3 | . . . . . . . . . 2 . . . . . . . . . . . 1 purge_threat 2 | . . . . . . . . . 1 . . . . . . . . . . . 1 summon_haulers 1 | . . . . . . . . . 1 . . . . . . . . . . . . ignore_targets 6 | . . . . . . . . . . . . . . . . 6 . . . . . find_garrison 1 | . . . . . . . . . 1 . . . . . . . . . . . . amplify_resonance 1 | . . . . . . . . . 1 . . . . . . . . . . . . reboot_system 1 | . . . . . . . . . . . . . . . . . . 1 . . . overwrite_iff 5 | . . . . . . . . . 2 . . . . . . . . . . . 3 formatsys_low 3 | . . . . . . . . . 3 . . . . . . . . . . . . formatsys_high 9 | . . . . . . . . 1 5 . 1 . . . . . . 2 . . . Relay Couplers Released 34 | . . . . . 4 4 4 12 1 1 . . . . 4 . 1 . . . 3 Ejected 8 | . . . . . . . 4 . . . . . . . 4 . . . . . . Machine Destruction 22 | . . . . . . 4 . 12 1 1 . . . . . . 1 . . . 3 Programmers 4 | . . . . . 4 . . . . . . . . . . . . . . . . Attached 14 | . . . . . . . . 1 7 . . . . . . 1 . 2 . . 3 Robots Rewired 13 | . . . . . . . . . . . 2 . . . . . . 11 . . . Allies Hacked . | . . . . . . . . . . . . . . . . . . . . . . Hacks Repelled . | . . . . . . . . . . . . . . . . . . . . . . Allies | -11 -10 -10 -10 -9 -8 -8 -7 -7 -7 -6 -6 -6 -6 -5 -5 -5 -5 -5 -5 -5 -5 -------- Run | Scr Mat Min Exi Min Mat Gar Fac Gar Sto Fac Low Low Dat Pro Fac Was Fac Ext Cet Arc Hub Total Allies 37 | . . 1 . . . . . 1 12 . 3 . . . . . 1 16 . . 3 Largest Group 12 | . . 1 . . . . . 1 5 3 3 1 1 . . . 1 12 10 1 2 Highest-Rated Group 546 | . . 31 . . . . . 37 124 62 90 32 32 . . . 10 546 459 148 58 Highest-Rated Ally 156 | . . 31 . . . . . 37 37 32 32 32 32 . . . 10 156 148 148 29 Total Orders 19 | . . . . . . . . . 3 1 . 2 1 . . . . 8 4 . . STAY 7 | . . . . . . . . . . . . 1 1 . . . . 2 3 . . FOLLOW 4 | . . . . . . . . . . . . 1 . . . . . 2 1 . . AID 2 | . . . . . . . . . 1 1 . . . . . . . . . . . DROP 1 | . . . . . . . . . 1 . . . . . . . . . . . . COLLECT 1 | . . . . . . . . . 1 . . . . . . . . . . . . RETURN 4 | . . . . . . . . . . . . . . . . . . 4 . . . Ally Attacks 299 | . . . . . . . . . 69 4 32 3 1 . . . . 136 43 . 11 Total Damage 7170 | . . . . . . . . . 1817 176 804 130 41 . . . . 2975 1020 . 207 Kills 50 | . . . . . . . . . 15 2 8 2 . . . . . 15 7 . 1 Allies Corrupted 1 | . . . . . . . . . . . . . . . . . . . 1 . . Allies Melted . | . . . . . . . . . . . . . . . . . . . . . . Intel | -11 -10 -10 -10 -9 -8 -8 -7 -7 -7 -6 -6 -6 -6 -5 -5 -5 -5 -5 -5 -5 -5 ------- Run | Scr Mat Min Exi Min Mat Gar Fac Gar Sto Fac Low Low Dat Pro Fac Was Fac Ext Cet Arc Hub Robot Analysis Total 118 | . 1 . . . 2 . . . . . . . 115 . . . . . . . . Derelict Logs Recovered 5 | . . 1 . . . . . . . . 2 . . 2 . . . . . . . Drone Launches 5 | . . . . . . . . . . . . . . . . . . 5 . . . Drone Recoveries 5 | . . . . . . . . . . . . . . . . . . 5 . . . Decoded 0b10 Intel 15 | . . . . . . . . . . . . . . . . . . . . . 15 Traps 6 | . . . . . . . . . . . . . . . . . . . . . 6 Emergency Access 9 | . . . . . . . . . . . . . . . . . . . . . 9 Exploration | -11 -10 -10 -10 -9 -8 -8 -7 -7 -7 -6 -6 -6 -6 -5 -5 -5 -5 -5 -5 -5 -5 ------------- Run | Scr Mat Min Exi Min Mat Gar Fac Gar Sto Fac Low Low Dat Pro Fac Was Fac Ext Cet Arc Hub Turns Passed 26718 | 114 1232 568 449 193 2414 1604 645 1016 1264 912 1396 1714 415 824 562 405 862 1353 423 6595 1758 Spaces Moved 10440 | 47 749 385 271 110 1032 653 332 502 606 550 720 1029 225 490 269 139 360 663 171 590 547 Core 212 | 1 . . . . . . . . . . . . . . . . . . . 211 . Treads 2716 | . . . 145 10 461 479 . 7 . . . . . . . . 15 502 171 379 547 Legs 954 | . . . . . 49 . . . . . . . 109 490 269 37 . . . . . Wheels 6558 | 46 749 385 126 100 522 174 332 495 606 550 720 1029 116 . . 102 345 161 . . . Hover . | . . . . . . . . . . . . . . . . . . . . . . Flight . | . . . . . . . . . . . . . . . . . . . . . . Fastest Speed 50 | 50 90 140 140 140 140 150 150 140 120 120 120 160 150 150 150 150 160 150 180 160 160 Average Speed 207 | 88 128 140 161 143 168 188 150 150 127 122 157 160 154 150 150 164 161 173 180 1081 179 Slowest Speed 2750 | 90 140 140 180 180 270 300 150 217 150 130 160 160 270 150 150 180 200 180 180 2750 180 Overloaded Moves . | . . . . . . . . . . . . . . . . . . . . . . Propulsion Burnouts . | . . . . . . . . . . . . . . . . . . . . . . Robots Hopped . | . . . . . . . . . . . . . . . . . . . . . . Cave-ins Triggered 1 | . . . . . . . . . . . . . . . . . 1 . . . . Exploration Rate (%) 53 | 3 95 52 58 25 66 67 6 80 76 15 79 74 78 60 8 69 9 65 66 91 39 Regions Visited 21 Branch Regions 12 Pre-discovered Areas 31 | . 2 2 1 . 2 . . . . . 1 . 22 1 . . . . . . . Known Exits Taken 4 | . 1 . . . 1 . 1 . . 1 . . . . . . . . . . . Unknown Exits Taken 13 | 1 . 1 1 1 . . . . 1 . 1 1 1 1 . . 1 1 1 1 . Scrap Searched 18 | . . . . 1 . . . . . . 3 13 . 1 . . . . . . . Spaces Dug 97 | . . . . . 14 37 2 . 1 . . 1 . . 4 . 10 1 14 . 13 Terrain Destroyed 968 | . . . . . 15 74 2 15 76 20 5 2 . 9 42 3 16 4 47 17 621 Melee 14 | . . . . . 1 2 2 . 1 . . . . . 1 . 4 1 . . 2 Projectile 89 | . . . . . . . . . . . . 2 . . 7 3 12 3 2 17 43 AOE 865 | . . . . . 14 72 . 15 75 20 5 . . 9 34 . . . 45 . 576 Terrain Rammed . | . . . . . . . . . . . . . . . . . . . . . . Walls Destroyed . | . . . . . . . . . . . . . . . . . . . . . . Machines Disabled . | . . . . . . . . . . . . . . . . . . . . . . Actions | -11 -10 -10 -10 -9 -8 -8 -7 -7 -7 -6 -6 -6 -6 -5 -5 -5 -5 -5 -5 -5 -5 --------- Run | Scr Mat Min Exi Min Mat Gar Fac Gar Sto Fac Low Low Dat Pro Fac Was Fac Ext Cet Arc Hub Total 13646 | 87 882 401 285 127 1428 888 457 680 930 686 853 1102 280 557 386 248 544 835 264 721 1005 Wait 881 | 10 30 6 7 3 90 80 87 43 119 40 7 9 . 29 42 2 36 14 25 32 170 Move 10421 | 46 748 384 270 109 1031 652 332 501 605 549 719 1028 224 489 269 138 359 662 170 589 547 Hop . | . . . . . . . . . . . . . . . . . . . . . . Pick Up 271 | 7 17 1 3 1 52 10 10 17 15 10 12 28 14 7 10 10 10 4 10 7 16 Fast Attach 82 | 7 . . . 1 16 6 1 1 10 3 5 . 5 1 4 4 4 2 4 5 3 Attach 118 | . 2 . 1 2 18 8 2 10 7 3 7 1 7 2 9 5 6 6 1 6 15 Detach 15 | . . . . . 3 1 . . 2 . . . 2 . . . . 3 . 2 2 Swap 187 | 2 3 . 1 . 18 16 6 12 39 3 6 2 4 1 8 1 4 8 13 4 36 Drop 256 | . 5 2 3 1 48 19 8 9 26 10 9 27 10 5 10 12 12 1 14 9 16 Fire 1168 | 15 77 8 . 10 150 67 9 70 92 66 75 7 13 23 23 76 87 48 27 67 158 Melee 108 | . . . . . 2 9 2 1 15 . . . 1 . 11 . 24 7 . . 36 Ram 3 | . . . . . . . . . . 2 . . . . . . 1 . . . . Kick . | . . . . . . . . . . . . . . . . . . . . . . Crush 8 | . . . . . . . . . . . 1 . . . . . 1 . . . 6 Escape Stasis 36 | . . . . . . 20 . 16 . . . . . . . . . . . . . Rewire 92 | . . . . . . . . . . . 12 . . . . . . 80 . . . Trap . | . . . . . . . . . . . . . . . . . . . . . . Miscellaneous . | . . . . . . . . . . . . . . . . . . . . . . Route ------- -11/Scrapyard -10/Materials (discovered 5 exits: [*Mat x3] / *Min x2) -10/Mines (discovered 2 exits: [*Mat] / *Exi) -10/Exiles -9/Mines -8/Materials (discovered 3 exits: *Fac x2 / Gar) -8/Garrison (discovered 3 exits: *Fac x3) -7/Factory -7/Garrison (discovered 2 exits: *Sto x2) -7/Storage -6/Factory (discovered 2 exits: *Low x2) -6/Lower Caves -6/Lower Caves -6/Data Miner -5/Proximity Caves -5/Factory -5/Waste -5/Factory (discovered 3 exits: [*Fac] / *Upp / *Ext) -5/Extension (discovered 2 exits: [*Fac] / [*Cet]) -5/Cetus (discovered 2 exits: [*Fac] / [*Arc]) -5/Archives (discovered 3 exits: [*Fac] / *Hub x2) -5/Hub_04(d) (discovered 2 exits: [*Fac x2]) History --------- Turn | Location | Event 26 | -11/Scrapyard | Discovered new exit (range 16) 115 | -11/Scrapyard | Entered Materials 115 | -10/Materials | Discovered new exit (range 15) 313 | -10/Materials | Build established: Mutant 471 | -10/Materials | Discovered new exit (range 12) 557 | -10/Materials | Discovered new exit (range 11) 659 | -10/Materials | Identified exit to Mines 797 | -10/Materials | Discovered new exit (range 7) 1030 | -10/Materials | Build established: Hauler-Mutant 1182 | -10/Materials | Discovered new exit (range 16) 1347 | -10/Materials | Entered Mines 1394 | -10/Mines | Learned location of Mines (-9) 1667 | -10/Mines | Deemed a non-threat by the Exiles lab entrance 1667 | -10/Mines | Discovered new exit (range 5) 1750 | -10/Mines | Escorted by a lone wolf Derelict 1770 | -10/Mines | Learned location of Storage (-7) 1807 | -10/Mines | Discovered new exit (range 4) 1915 | -10/Mines | Entered Exiles 1915 | -10/Exiles | Accompanied by 1 ally 1951 | -10/Exiles | Met 8R-AWN 1977 | -10/Exiles | Met EX-HEX 2030 | -10/Exiles | Met EX-DEC 2037 | -10/Exiles | Learned location of Zion (-7) 2340 | -10/Exiles | Discovered new exit (range 10) 2364 | -10/Exiles | Entered Mines 2391 | -9/Mines | Core integrity fell below 50% 2537 | -9/Mines | Discovered new exit (range 5) 2557 | -9/Mines | Entered Materials 2557 | -8/Materials | Evolved 4 slots: Propulsion x1, Utility x3 3113 | -8/Materials | Lost 7 parts (3n2u2w) 3402 | -8/Materials | Discovered new exit (range 15) 4181 | -8/Materials | Discovered new exit (range 8) 4709 | -8/Materials | Garrison activated, responded to threat 4844 | -8/Materials | Identified exit to Garrison 4971 | -8/Materials | Entered Garrison 5006 | -8/Garrison | Triggered checkpoint 5084 | -8/Garrison | Triggered checkpoint 5181 | -8/Garrison | Triggered checkpoint 5319 | -8/Garrison | Discovered new exit (range 9) 5473 | -8/Garrison | Discovered new exit (range 15) 5597 | -8/Garrison | Core integrity fell below 50% 5666 | -8/Garrison | Lost 4 parts (1p1n1u1w) 5686 | -8/Garrison | Triggered checkpoint 5780 | -8/Garrison | Discovered new exit (range 15) 5818 | -8/Garrison | Installed Relay Interface Framework 6410 | -8/Garrison | Triggered checkpoint 6506 | -8/Garrison | Garrison Relay disabled 6575 | -8/Garrison | Entered Factory 6575 | -7/Factory | Evolved 2 slots: Propulsion x1, Utility x1 6757 | -7/Factory | Fabricated Adv. EMP Blaster (x1) 6876 | -7/Factory | Fabricated Adv. EMP Blaster? 7051 | -7/Factory | Repaired Gatling Laser 7120 | -7/Factory | Garrison activated, responded to threat 7212 | -7/Factory | Identified exit to Garrison 7220 | -7/Factory | Entered Garrison 7228 | -7/Garrison | Expanded RIF knowledge: Program Shield 7270 | -7/Garrison | Triggered checkpoint 7398 | -7/Garrison | Garrison Relay disabled 7494 | -7/Garrison | Triggered checkpoint 7542 | -7/Garrison | Triggered checkpoint 7639 | -7/Garrison | Lost 3 parts (2n1u) 7692 | -7/Garrison | Triggered checkpoint 7700 | -7/Garrison | Destroyed 15 combat bots 7712 | -7/Garrison | Build established: Bothacker-Mutant 7786 | -7/Garrison | Triggered checkpoint 7848 | -7/Garrison | Garrison Relay disabled 7905 | -7/Garrison | Discovered new exit (range 10) 8104 | -7/Garrison | Triggered checkpoint 8161 | -7/Garrison | Garrison Relay disabled 8213 | -7/Garrison | Discovered new exit (range 12) 8236 | -7/Garrison | Entered Storage 8236 | -7/Storage | Accompanied by 1 ally 8636 | -7/Storage | First assault squad dispatched 8993 | -7/Storage | Garrison activated, responded to threat 9097 | -7/Storage | Found Rocket Array 9310 | -7/Storage | Garrison activated, responded to threat 9376 | -7/Storage | Met a pair of Derelict thieves 9399 | -7/Storage | Core integrity fell below 50% 9413 | -7/Storage | Discovered new exit (range 16) 9428 | -7/Storage | Destroyed 8 combat bots 9495 | -7/Storage | Build established: Hauler-Mutant 9500 | -7/Storage | Entered Factory 9500 | -6/Factory | Accompanied by 3 allies 9500 | -6/Factory | Evolved 2 slots: Utility x2 10200 | -6/Factory | First assault squad dispatched 10242 | -6/Factory | Identified exit to Lower Caves 10395 | -6/Factory | Spotted B-75 Beast 10400 | -6/Factory | Fabricated Arm. Medium Treads? 10412 | -6/Factory | Entered Lower Caves 10583 | -6/Lower Caves | Learned 4 Factory zone layouts 10595 | -6/Lower Caves | Cld. Pulse Rifle stolen by Master Thief 10607 | -6/Lower Caves | Cold Fusion Reactor stolen by Master Thief 10654 | -6/Lower Caves | Build established: Bothacker-Mutant 10836 | -6/Lower Caves | Attracted the attention of an 0b10 outpost 10957 | -6/Lower Caves | Attracted the attention of an 0b10 checkpoint 11267 | -6/Lower Caves | Build established: Hauler-Mutant 11408 | -6/Lower Caves | Discovered new exit (range 13) 11489 | -6/Lower Caves | Attacked by a faux Warlord 11808 | -6/Lower Caves | Entered another Lower Caves area 11808 | -6/Lower Caves | Accompanied by 1 ally 11866 | -6/Lower Caves | Spotted B-75 Beast 11975 | -6/Lower Caves | Encountered a Warlord checkpoint 12356 | -6/Lower Caves | Discovered new exit (range 16) 13522 | -6/Lower Caves | Entered Data Miner 13522 | -6/Data Miner | Accompanied by 1 ally 13522 | -6/Data Miner | Discovered new exit (range 6) 13553 | -6/Data Miner | Met Data Miner 13580 | -6/Data Miner | Acquired the access code to Warlord's prototype stash 13580 | -6/Data Miner | Learned location of Section 7 (-3) 13614 | -6/Data Miner | Received God Mode back door access code from Data Miner 13677 | -6/Data Miner | Interfaced with the Data Conduit 13770 | -6/Data Miner | Found Exp. Thermal Shield 13937 | -6/Data Miner | Entered Proximity Caves 13939 | -5/Proximity Caves | Attracted the attention of an 0b10 checkpoint 14433 | -5/Proximity Caves | Discovered new exit (range 8) 14656 | -5/Proximity Caves | Learned Factory emergency access door positions 14761 | -5/Proximity Caves | Entered Factory 14761 | -5/Factory | Evolved 2 slots: Utility x2 14762 | -5/Factory | Identified exit to Upper Caves 14764 | -5/Factory | Loaded intel: 301 machine locations 15033 | -5/Factory | Fabricated Combat Drone Bay (x1) 15171 | -5/Factory | Lost 3 parts (1p1u1w) 15304 | -5/Factory | Found Mni. Smartbomb Launcher 15306 | -5/Factory | Found Mni. Smartbomb Launcher 15307 | -5/Factory | Garrison activated, responded to threat 15323 | -5/Factory | Sucked down chute 15323 | -5/Factory | Entered Waste 15338 | -5/Waste | EMP discharged 15338 | -5/Waste | System corruption reached 10% 15341 | -5/Waste | Lost 5 parts (1p1n1u2w) 15342 | -5/Waste | Spotted C-40 Crusher 15342 | -5/Waste | Spotted C-40 Crusher 15386 | -5/Waste | Spotted C-40 Crusher 15391 | -5/Waste | Spotted C-40 Crusher 15393 | -5/Waste | Spotted C-40 Crusher 15426 | -5/Waste | Spotted C-40 Crusher 15438 | -5/Waste | EMP discharged 15452 | -5/Waste | Destroyed C-40 Crusher 15476 | -5/Waste | Found Damper Plating 15521 | -5/Waste | Discovered new exit (range 16) 15538 | -5/Waste | EMP discharged 15539 | -5/Waste | Build established: Bothacker-Mutant 15638 | -5/Waste | EMP discharged 15648 | -5/Waste | Destroyed C-40 Crusher 15653 | -5/Waste | Found Damper Plating 15681 | -5/Waste | Destroyed C-40 Crusher 15687 | -5/Waste | Found Damper Plating 15728 | -5/Waste | Entered Factory 15729 | -5/Factory | Loaded intel: 309 machine locations 15928 | -5/Factory | Discovered new exit (range 20) 16026 | -5/Factory | Discovered exit to Upper Caves (range 9) 16049 | -5/Factory | System corruption reached 30% 16235 | -5/Factory | Garrison activated, responded to threat 16575 | -5/Factory | Crushed by falling debris 16580 | -5/Factory | Discovered new exit (range 5) 16590 | -5/Factory | Entered Extension 16591 | -5/Extension | Loaded intel: 27 machine locations 16784 | -5/Extension | Rescued a captive Derelict 16967 | -5/Extension | Build established: Hauler-Mutant 17041 | -5/Extension | Spotted B-75 Beast 17055 | -5/Extension | Allies destroyed B-75 Beast 17059 | -5/Extension | Spotted B-75 Beast 17064 | -5/Extension | Allies destroyed B-75 Beast 17155 | -5/Extension | Rescued a captive Derelict 17482 | -5/Extension | Rescued A7 17637 | -5/Extension | Build established: Commander-Mutant 17853 | -5/Extension | Discovered new exit (range 16) 17856 | -5/Extension | Discovered new exit (range 15) 17943 | -5/Extension | Entered Cetus 17943 | -5/Cetus | Accompanied by 10 allies (A7) 17944 | -5/Cetus | Loaded intel: 24 machine locations 17948 | -5/Cetus | Acquired a Cetus Manufacturing Module code from A7 17972 | -5/Cetus | Spotted Cetus Guard 17972 | -5/Cetus | Spotted Cetus Guard 17975 | -5/Cetus | Spotted Cetus Guard 17977 | -5/Cetus | Allies destroyed Cetus Guard 17977 | -5/Cetus | Spotted Cetus Guard 17980 | -5/Cetus | Destroyed Cetus Guard 17982 | -5/Cetus | Allies destroyed Cetus Guard 17988 | -5/Cetus | Destroyed Cetus Guard 18128 | -5/Cetus | Cetus Manufacturing Module disabled 18172 | -5/Cetus | Escorted A7 to Cetus Mainframe 18202 | -5/Cetus | Discovered new exit (range 15) 18235 | -5/Cetus | Spotted Cetus Guard 18235 | -5/Cetus | Spotted Cetus Guard 18240 | -5/Cetus | Destroyed Cetus Guard 18240 | -5/Cetus | Spotted Cetus Guard 18242 | -5/Cetus | Destroyed Cetus Guard 18242 | -5/Cetus | Spotted Cetus Guard 18243 | -5/Cetus | Destroyed Cetus Guard 18243 | -5/Cetus | Destroyed Cetus Guard 18255 | -5/Cetus | Discovered new exit (range 15) 18266 | -5/Cetus | Met Revision 17 18269 | -5/Cetus | Destroyed Revision 17 18318 | -5/Cetus | Build established: Hauler-Mutant 18366 | -5/Cetus | Entered Archives 18366 | -5/Archives | Accompanied by 1 ally (A7) 18367 | -5/Archives | Loaded intel: 8 machine locations 18371 | -5/Archives | Received a hacking code to weaken MAIN.C 18521 | -5/Archives | Discovered new exit (range 16) 18543 | -5/Archives | Discovered new exit (range 16) 18956 | -5/Archives | Discovered new exit (range 16) 24961 | -5/Archives | Entered Hub_04(d) 24962 | -5/Hub_04(d) | Loaded intel: 120 machine locations 25182 | -5/Hub_04(d) | Discovered new exit (range 12) 25232 | -5/Hub_04(d) | Core integrity fell below 50% 25756 | -5/Hub_04(d) | Discovered new exit (range 4) 25777 | -5/Hub_04(d) | Network Hub disabled 25861 | -5/Hub_04(d) | First assault squad dispatched 25912 | -5/Hub_04(d) | Spotted Lightning 25916 | -5/Hub_04(d) | Spotted Lightning 25917 | -5/Hub_04(d) | Spotted Lightning 25918 | -5/Hub_04(d) | Destroyed Lightning 25927 | -5/Hub_04(d) | Destroyed Lightning 25930 | -5/Hub_04(d) | Destroyed Lightning 25945 | -5/Hub_04(d) | Found Exp. Phase Shifter 25984 | -5/Hub_04(d) | Found EM Dispersion Field 25987 | -5/Hub_04(d) | Found Prototype Energy Cannon 25992 | -5/Hub_04(d) | Intercept squad dispatched 26009 | -5/Hub_04(d) | Spotted Tracker 26043 | -5/Hub_04(d) | Spotted Combat Programmer 26047 | -5/Hub_04(d) | Destroyed Tracker 26061 | -5/Hub_04(d) | Build established: Scavenger-Mutant 26159 | -5/Hub_04(d) | Destroyed Combat Programmer 26177 | -5/Hub_04(d) | Found Exp. Targeting Computer 26493 | -5/Hub_04(d) | Spotted Lightning 26500 | -5/Hub_04(d) | Spotted Lightning 26505 | -5/Hub_04(d) | Spotted Lightning 26571 | -5/Hub_04(d) | Core integrity fell below 20% 26571 | -5/Hub_04(d) | Destroyed Lightning 26661 | -5/Hub_04(d) | Destroyed Lightning 26693 | -5/Hub_04(d) | Identified EMDS 26711 | -5/Hub_04(d) | Destroyed Lightning 26719 | -5/Hub_04(d) | Destroyed by G-50 Soldier with Heavy Laser Last Messages --------------- 26700_ Ended siege mode. 26700_ K-01 Serf collects debris. 26700_ Acquired 58 matter. 26703_ K-01 Serf collects debris. 26703_ Slammed into Lightning. 26704_ Penetrated by EMDS Slug. 26705_ K-01 Serf collects debris. 26705_ Slammed into Lightning. 26706_ K-01 Serf collects debris. 26707_ Acquired Mic. Fission Core. 26709_ Acquired 10 matter. 26710_ K-01 Serf collects debris. 26711_ Acquired 10 matter. 26711_ U-05 Engineer lays Concrete. 26711_ K-01 Serf destroyed. 26711_ Lightning destroyed. 26712_ U-05 Engineer lays Concrete. 26717_ K-01 Serf collects debris. 26718_ U-05 Engineer builds a Wall. 26719_ K-01 Serf destroyed. Map ----- +----------------------------------------------------+ | | | | | ????? ??????#???#?##?####?############?###?#####? | | ????? ?????????#############??###?#?#####?#?#?? | | ???? ????#################################?? | | ???? ####?###"""""##"""########?###?#????? | | ??? # ######""T""##"T"###########?##???## | | ?????# ######?#? | | ?????# ####??### | | ?????# ###?###?# | | ?????# "############## ###+############## | | ?????### # ?######?####### ## # | | ???????#?# ##############"" ## # """ "" | | ??????#? # ##??######?#####T ## # % | | ?????#?? # ###?############### ## " """ "" | | ????##??+##################### ## + | | ?????# ###### # ## """" # "" "" | | ###??# " ######" " # ## """" # | | ???### """ ######T # ## """" # """ "" | | #???## """"" ####?# = # =## """" # | | ????#? """"""" ###?## ===% " %########### """ "" | | #?#?## """"" ######!%[%= # !########### | | ###### """ #######/%!### #######?### | | #?#### " #######g%%## * ############+#### | | ####?# #######g%### ! *%= | | ###### # ####+@%## *%=% | | ###########++####### =![%u!## ! ################# | | ########### ####### [%!==!###=%############### ? | | ## ####### *!!=!!### !############### " | | ## ####### =|]=### %## # ?" | | ""T"" ## ## %!%###^^## # " | | """"" ## ##! "" !### ## + " | | ######+### ## ### ## # | | ##### # "" ### ## ###+ | | ?#### + g ### ## +?? | | ###### ### # """ ### ## # | | ######+####+##### # ### ## # ? | | " [ = ## ##+####### # ! # " | | ### """ ""!= ! ## # # " | | ### = ## + # " | | ### """ " ############## # # | | ### ! ###############+#######+########?" | | ### """ """ =######### ## ######?? " | | #?# # ## = + #?###?#? " | | ### """ """ # ## ######?##??? | | ### + ! ## " " " ########### " | | ### """ """ # ## " " !!! " #########?# "? | | ### ! # ## " " !! " ##########? " | | ### !!!# ## !! ##########? | | #############/## ##! * " #########?#??# | +----------------------------------------------------+ Best States ------------- Heat Dissipation 94 Coolant Potential 50 Energy Generation 23 Energy Capacity 825 Matter Stores 300 Matter Capacity 300 Sight Range 16 Terrain Scan Range 20 Terrain Scan Density 210 Jamming Range 12 Power Amplification 30 Armor Coverage 2400 Resistance: TH 30 Resistance: EM 90 Weapon Cycling 15 Evasion (%) 42 Targeting Accuracy 12 Melee Accuracy 14 Recoil Reduction 4 Matter Filtering 30 Energy Filtering 30 Particle Charging 25 Offensive Hacking 20 Relay Coupler Types 42 Relay Coupler Value 2 Item Schematics ----------------- Fission Core | -8/Materials | Scanalyzed Hacking Suite | -8/Materials | Scanalyzed Cooling System | -8/Materials | Scanalyzed Adv. EMP Blaster | -8/Materials | Scanalyzed Kinetic Spear | -6/Data Miner | Free Exp. Transmission Jammer | -6/Data Miner | Free Exp. Sensor Array | -6/Data Miner | Free Exp. Cesium-ion Thruster | -6/Data Miner | Free Lgt. Regenerative Plating | -6/Data Miner | Free Combat Drone Bay | -6/Data Miner | Free Robot Schematics ------------------ O-16 Technician | -10/Materials | Hacked I-47 Archangel | -6/Data Miner | Free I-36 Angel | -6/Data Miner | Free H-66 Slayer | -6/Data Miner | Free X-72 Disruptor | -6/Data Miner | Free G-67 Veteran | -6/Data Miner | Free G-50 Soldier | -6/Data Miner | Free S-27 Virus | -6/Data Miner | Free Fabricated ------------ Adv. EMP Blaster | x1 | -7/Factory Adv. EMP Blaster | x1 | -7/Factory Arm. Medium Treads | x2 | -6/Factory | Preloaded Combat Drone Bay | x1 | -5/Factory Alien Tech Used ----------------- None Achievements -------------- None Challenges ------------ None Game ------ Seed LightFlightDriver Manual? 0 Play Time 02:47:56 Cumulative 546.2 hours Start 2021.02.20 @ 21:58:27 End 2021.02.25 @ 20:01:08 Sessions 5 Manual Loads 0 Difficulty Rogue Special Mode None Game No. 344 Rogue 344 Adventurer 0 Explorer 0 Win Type - Total 6 Types 4/0/1/0/1/0/0/0/0 Lore% 88 Gallery% 89 Achievement% 70 Wizard Run 0 Options --------- ASCII 0 Keyboard 0 Movement Mouse Keybinds 1 Fullscreen 2 Font 24/Smallcaps Map View 68x50 Tactical HUD 1 Map Filters NONE Filters NONE Steam 1 RUN: b83e2bdd-0001-4d60-8392-1c1370432dd3